Workbook

Sheet Input data
A1: ID | B1: AFC, mo
A2: 5484 | B2: 21.57377049
A3: 5525 | B3: 22.26229508
A4: 5583 | B4: 22.29508197
A5: 5374 | B5: 22.32786885
A6: 5567 | B6: 22.39344262
A7: 5500 | B7: 22.49180328
A8: 5655 | B8: 22.49180328
A9: 5659 | B9: 22.49180328
A10: 5550 | B10: 22.52459016
A11: 5454 | B11: 22.55737705
A12: 5491 | B12: 22.59016393
A13: 5386 | B13: 22.6557377
A14: 5559 | B14: 22.68852459
A15: 5618 | B15: 22.68852459
A16: 5654 | B16: 22.68852459
A17: 5455 | B17: 22.72131148
A18: 5515 | B18: 22.72131148
A19: 5554 | B19: 22.72131148
A20: 5584 | B20: 22.72131148
A21: 5444 | B21: 22.81967213
A22: 5517 | B22: 22.81967213
A23: 5619 | B23: 22.85245902
A24: 5365 | B24: 22.91803279
A25: 5502 | B25: 22.91803279
A26: 5459 | B26: 22.95081967
A27: 5521 | B27: 22.95081967
A28: 5446 | B28: 22.98360656
A29: 5435 | B29: 23.04918033
A30: 5510 | B30: 23.04918033
A31: 5493 | B31: 23.08196721
A32: 5513 | B32: 23.14754098
A33: 5391 | B33: 23.18032787
A34: 5543 | B34: 23.21311475
A35: 5572 | B35: 23.21311475
A36: 5482 | B36: 23.24590164
A37: 5538 | B37: 23.24590164
A38: 5637 | B38: 23.24590164
A39: 5497 | B39: 23.27868852
A40: 5445 | B40: 23.3442623
A41: 5469 | B41: 23.3442623
A42: 5544 | B42: 23.44262295
A43: 5641 | B43: 23.44262295
A44: 5421 | B44: 23.50819672
A45: 5380 | B45: 23.57377049
A46: 5403 | B46: 23.60655738
A47: 5539 | B47: 23.60655738
A48: 5613 | B48: 23.60655738
A49: 5632 | B49: 23.60655738
A50: 5660 | B50: 23.60655738
A51: 5529 | B51: 23.63934426
A52: 5424 | B52: 23.67213115
A53: 5617 | B53: 23.7704918
A54: 5396 | B54: 23.80327869
A55: 5443 | B55: 23.86885246
A56: 5471 | B56: 23.86885246
A57: 5571 | B57: 23.86885246
A58: 5573 | B58: 23.90163934
A59: 5458 | B59: 23.93442623
A60: 5557 | B60: 23.93442623
A61: 5647 | B61: 23.93442623
A62: 5429 | B62: 24
A63: 5466 | B63: 24.03278689
A64: 5477 | B64: 24.06557377
A65: 5622 | B65: 24.09836066
A66: 5492 | B66: 24.16393443
A67: 5579 | B67: 24.2295082
A68: 5395 | B68: 24.29508197
A69: 5614 | B69: 24.32786885
A70: 5540 | B70: 24.39344262
A71: 5367 | B71: 24.42622951
A72: 5523 | B72: 24.6557377
A73: 5436 | B73: 24.68852459
A74: 5595 | B74: 24.75409836
A75: 5461 | B75: 24.78688525
A76: 5629 | B76: 24.78688525
A77: 5638 | B77: 24.78688525
A78: 5490 | B78: 24.95081967
A79: 5358 | B79: 25.3442623
A80: 5503 | B80: 25.44262295
A81: 5408 | B81: 25.57377049
A82: 5393 | B82: 25.93442623
A83: 5483 | B83: 26.39344262
A84: 5366 | B84: 26.52459016
A85: 5434 | B85: 27.08196721
A86: 5601 | B86: 27.14754098

Sheet Analysis (hidden)
A1: Heifer Management Report© | H1: Herd | J1: Herd 1
H2: Address
C3: Breed | D3: =Results!D3 -> Holstein | H3: City, Zip
H4: email
B6: Developed by Patrick C. Hoffman, Department of Dairy Science, University of Wisconsin-Madison
A7: Calving Age (Averages and Variance)
C8: Your Herd | D8: Goals
A9: Summary Statistics
B10: Average age @ first calving, mo | C10: =AVERAGE('Input data'!B:B) -> 23.66518804 | D10: 23-24 mo
B11: Minimum calving age, mo | C11: =MIN('Input data'!B:B) -> 21.57377049 | D11: na
B12: Maximum calving age, mo | C12: =MAX('Input data'!B:B) -> 27.14754098 | D12: na
B13: Heifers calving/year, n | C13: =COUNT('Input data'!B:B) -> 85 | D13: na
B14: Calving age deviation, mo | C14: =STDEV('Input data'!B:B) -> 1.096466776 | D14: < 1.7 mo
B15: Kurtosis | C15: =KURT('Input data'!B:B) -> 1.565934869 | D15: na
B16: Skewness | C16: =SKEW('Input data'!B:B) -> 1.168466265 | D16: > 1.5
A18: Range and Variance
B19: Youngest calving age (typical), mo | C19: =(C10)-(C14*(2-C16/2)) -> 22.11284671 | D19: > 21 mo
B20: Oldest calving age (typical), mo | C20: =(C10+(C14*2+C16/2)) -> 26.44235473 | D20: < 28 mo
B21: Calving age range (typical), mo | C21: =(C20-C19) -> 4.329508017 | D21: < 6.0
B22: Days on feed variance, d | C22: =(C21*30.5) -> 132.0499945 | D22: < 200
B23: Calving body weight variance, lbs | C23: =(C22*C50) -> 224.4849907 | D23: < 325
A25: Breeding Efficiency
B27: True heifer pregnancy rate©, %/mo | C27: =$D$83 -> 49.83981094 | D27: > 42.5
B28: Average pregnancy age, mo | C28: =C10-9 -> 14.66518804 | D28: 14.0-14.5
B29: First (start) breeding age, mo | C29: =$D$85 -> 12.76652305 | D29: 12.5-13.0
A31: Rearing Cost
B33: Excess rearing days, days/heifer | C33: =(C35/C13) -> 0 | D33: 0 days
B34: Excess rearing cost, $$/heifer | C34: =(C33*2.25) -> 0 | D34: 0 $$
B35: Excess herd rearing days, days/herd | C35: =IF(C49<0,0,C49) -> 0 | D35: 0 days
B36: Excess rearing cost, $$/herd | C36: =(C35*2.25) -> 0 | D36: 0 $$
A38: Nutrient management
B40: Excess manure production, tons/year | C40: =(C35*25)/2000 -> 0 | D40: 0 tons
B41: Excess P production , lbs/year | C41: =(C40*0.35*0.006)*2000 -> 0 | D41: 0 lbs
B43: © Copyright: Patrick C. Hoffman 12/3/2012
B47: Target Calving Age Variance DOF | C47: =(C10-23.5)*(30.5)*(C13) -> 428.25
B48: SD Variance DOF | C48: =(C22-180)*C13/2 -> -2037.875233
B49: Excess herd days on feed, d/year | C49: =(C47+C48)/2 -> -804.8126164
B50: Breed ADG | C50: =IF(D3="milking shorthorn",1.6,IF(D3="guernsey",1.5,IF(D3="jersey",1.3,IF(D3="cross",1.5,IF(D3="arshire",1.5,1.7))))) -> 1.7 | K50: =COUNTIF(H53:H69,">"&0)-1 -> 7 | L50: =COUNTIF(H53:H69,"="&100) -> 2 | M50: =IF(L50=0,0,L50-1) -> 1 | N50: =K50-M50 -> 6
B52: AFC, mo | C52: Frequency | D52: Frequency% | E52: Freq Goal, % | F52: Open Heifers, n | G52: Preg Month | H52: % Open x mo | I52: Open % Goal | K52: x | L52: y
B53: 19 | C53: =COUNTIF('Input data'!B:B,"<="&B53) -> 0 | D53: =(C53/$C$70)*100 -> 0 | E53: 0 | F53: =(C70-C53) -> 85 | G53: =(B53-9) -> 10 | H53: =(F53/$C$70)*100 -> 100 | I53: 100 | K53: 1 | L53: 100
B54: 20 | C54: =SUMPRODUCT(('Input data'!B:B<=B55)*('Input data'!B:B>B54)*('Input data'!B:B>0)) -> 0 | D54: 0 | E54: 0 | F54: =(F53-C54) -> 85 | G54: =(B54-9) -> 11 | H54: =(F54/$C$70)*100 -> 100 | I54: 100 | K54: 2 | L54: 98.82352941
B55: 21 | C55: =SUMPRODUCT(('Input data'!B:B<B56)*('Input data'!B:B>=B55)*('Input data'!B:B>0)) -> 1 | D55: 1.176470588 | E55: 4 | F55: 84 | G55: 12 | H55: 98.82352941 | I55: =(I54-E55) -> 96 | K55: 3 | L55: 68.23529412
B56: 22 | C56: =SUMPRODUCT(('Input data'!B:B<B57)*('Input data'!B:B>=B56)*('Input data'!B:B>0)) -> 26 | D56: 30.58823529 | E56: 23 | F56: 58 | G56: 13 | H56: 68.23529412 | I56: 73 | K56: 4 | L56: 29.41176471
B57: 23 | C57: =SUMPRODUCT(('Input data'!B:B<B58)*('Input data'!B:B>=B57)*('Input data'!B:B>0)) -> 33 | D57: 38.82352941 | E57: 34 | F57: 25 | G57: 14 | H57: 29.41176471 | I57: 39 | K57: 5 | L57: 9.411764706
B58: 24 | C58: =SUMPRODUCT(('Input data'!B:B<B59)*('Input data'!B:B>=B58)*('Input data'!B:B>0)) -> 17 | D58: 20 | E58: 19 | F58: 8 | G58: 15 | H58: 9.411764706 | I58: 20 | K58: 6 | L58: 4.705882353
B59: 25 | C59: =SUMPRODUCT(('Input data'!B:B<B60)*('Input data'!B:B>=B59)*('Input data'!B:B>0)) -> 4 | D59: 4.705882353 | E59: 11 | F59: 4 | G59: 16 | H59: 4.705882353 | I59: 9 | K59: 7 | L59: 2.352941176
B60: 26 | C60: =SUMPRODUCT(('Input data'!B:B<B61)*('Input data'!B:B>=B60)*('Input data'!B:B>0)) -> 2 | D60: 2.352941176 | E60: 6 | F60: 2 | G60: 17 | H60: 2.352941176 | I60: 3 | K60: 8
B61: 27 | C61: =SUMPRODUCT(('Input data'!B:B<B62)*('Input data'!B:B>=B61)*('Input data'!B:B>0)) -> 2 | D61: 2.352941176 | E61: 3 | F61: 0 | G61: 18 | H61: 0 | I61: 0 | K61: 9
B62: 28 | C62: =SUMPRODUCT(('Input data'!B:B<B63)*('Input data'!B:B>=B62)*('Input data'!B:B>0)) -> 0 | D62: 0 | E62: 0 | F62: 0 | G62: 19 | H62: 0 | I62: 0 | K62: 10
B63: 29 | C63: =SUMPRODUCT(('Input data'!B:B<B64)*('Input data'!B:B>=B63)*('Input data'!B:B>0)) -> 0 | D63: 0 | E63: 0 | F63: 0 | G63: 20 | H63: 0 | I63: 0 | K63: 11
B64: 30 | C64: =SUMPRODUCT(('Input data'!B:B<B65)*('Input data'!B:B>=B64)*('Input data'!B:B>0)) -> 0 | D64: 0 | E64: 0 | F64: 0 | G64: 21 | H64: 0 | I64: 0 | K64: 12
B65: 31 | C65: =SUMPRODUCT(('Input data'!B:B<B66)*('Input data'!B:B>=B65)*('Input data'!B:B>0)) -> 0 | D65: 0 | E65: 0 | F65: 0 | G65: 22 | H65: 0 | I65: 0 | K65: 13
B66: 32 | C66: =SUMPRODUCT(('Input data'!B:B<B67)*('Input data'!B:B>=B66)*('Input data'!B:B>0)) -> 0 | D66: 0 | E66: 0 | F66: 0 | G66: 23 | H66: 0 | I66: 0 | K66: 14
B67: 33 | C67: =SUMPRODUCT(('Input data'!B:B<B68)*('Input data'!B:B>=B67)*('Input data'!B:B>0)) -> 0 | D67: 0 | E67: 0 | F67: 0 | G67: 24 | H67: 0 | I67: 0 | K67: 15
B68: 34 | C68: =SUMPRODUCT(('Input data'!B:B<B69)*('Input data'!B:B>=B68)*('Input data'!B:B>0)) -> 0 | D68: 0 | E68: 0 | F68: 0 | G68: 25 | H68: 0 | I68: 0 | K68: 16
B69: 35 | C69: =COUNTIF('Input data'!B:B,">="&B69) -> 0 | D69: 0 | E69: 0 | F69: 0 | G69: 26 | H69: 0 | I69: 0 | K69: 17
B70: Heifers, n | C70: =SUM(C53:C69) -> 85
B73: H(a) = H(i)e-ra
B75: where:
B76: H(a) = % of open heifers at age (a) | D76: 100
B77: H(i) = initial % of open heifers | D77: =EXP(INDEX(LINEST(LN(y),x),1,2)) -> 338.3159257 | F77: =EXP(INDEX(LINEST(LN(y),x),1,2)) -> 338.3159257
B78: r = the decay rate of open heifers | D78: =INDEX(LINEST(LN(y),x),1) -> -0.6899485204 | F78: =INDEX(LINEST(LN(y),x),1) -> -0.6899485204
B79: a = age in months | D79: =LN((D76/D77))/D78 -> 1.76652305
B80: where; a = [ln(H(a)/H(i)]/r
B82: Effective Pregnancy Rate, %/mo is
B83: 1-e(r) | D83: =(1-EXP(D78))*100 -> 49.83981094
B85: First (start) breeding age, mo | C85: 11 | D85: =(C85+D79) -> 12.76652305
B86: (Min age + a)

Sheet Results
A1: Heifer Management Report© | H1: Herd | J1: Herd 1
H2: Address
C3: Breed | D3: Holstein | H3: City, Zip
H4: email
B6: Developed by Patrick C. Hoffman, Department of Dairy Science, University of Wisconsin-Madison
A7: Calving Age (Averages and Variance)
C8: Your Herd | D8: Goals
A9: Summary Statistics
B10: Average age @ first calving, mo | C10: =Analysis!C10 -> 23.66518804 | D10: 23-24 mo
B11: Minimum calving age, mo | C11: =Analysis!C11 -> 21.57377049 | D11: na
B12: Maximum calving age, mo | C12: =Analysis!C12 -> 27.14754098 | D12: na
B13: Heifers calving/year, n | C13: =Analysis!C13 -> 85 | D13: na
B14: Calving age deviation, mo | C14: =Analysis!C14 -> 1.096466776 | D14: < 1.7 mo
B15: Kurtosis | C15: =Analysis!C15 -> 1.565934869 | D15: na
B16: Skewness | C16: =Analysis!C16 -> 1.168466265 | D16: > 1.5
A18: Range and Variance
B19: Youngest calving age (typical), mo | C19: =Analysis!C19 -> 22.11284671 | D19: > 21 mo
B20: Oldest calving age (typical), mo | C20: =Analysis!C20 -> 26.44235473 | D20: < 28 mo
B21: Calving age range (typical), mo | C21: =Analysis!C21 -> 4.329508017 | D21: < 6.0
B22: Days on feed variance, d | C22: =Analysis!C22 -> 132.0499945 | D22: < 200
B23: Calving body weight variance, lbs | C23: =Analysis!C23 -> 224.4849907 | D23: < 325
A25: Breeding Efficiency
B27: True heifer pregnancy rate©, %/mo | C27: =Analysis!C27 -> 49.83981094 | D27: > 42.5
B28: Average pregnancy age, mo | C28: =Analysis!C28 -> 14.66518804 | D28: 14.0-14.5
B29: First (start) breeding age, mo | C29: =Analysis!C29 -> 12.76652305 | D29: 12.5-13.0
A31: Rearing Cost
B33: Excess rearing days, days/heifer | C33: =Analysis!C33 -> 0 | D33: 0 days
B34: Excess rearing cost, $$/heifer | C34: =Analysis!C34 -> 0 | D34: 0 $$
B35: Excess herd rearing days, days/herd | C35: =Analysis!C35 -> 0 | D35: 0 days
B36: Excess rearing cost, $$/herd | C36: =Analysis!C36 -> 0 | D36: 0 $$
A38: Nutrient management
B40: Excess manure production, tons/year | C40: =Analysis!C40 -> 0 | D40: 0 tons
B41: Excess P production , lbs/year | C41: =Analysis!C41 -> 0 | D41: 0 lbs
B43: © Copyright: Patrick C. Hoffman 12/3/2012
